fUST/lending_fUST_20240509
["ID","MTS","AMOUNT","RATE_DAILY","PERIOD"]
[326642142,1715188249209,-4320.68,0.00021917,2]
[326642145,1715188249219,-4320.68,0.00021917,2]
[326642146,1715188249228,-3546.46814,0.00021917,2]
[326642148,1715188249238,-3546.46814,0.00021917,2]
[326642150,1715188249248,-4320.68,0.00021917,2]
[326642152,1715188249257,-4320.68,0.00021917,2]
[326642154,1715188249266,-4320.68,0.00021917,2]
[326642156,1715188249276,-237.977359,0.00021917,2]
[326642158,1715188249285,-237.977359,0.00021917,2]
[326642160,1715188249295,-4320.68,0.00021917,2]
[326642162,1715188249309,-4320.68,0.00021917,2]
[326642164,1715188249321,-4320.68,0.00021917,2]
[326642166,1715188249330,-4320.68,0.00021917,2]
[326642168,1715188249340,-4320.68,0.00021917,2]
[326642170,1715188249349,-151.0,0.00021917,2]
[326642172,1715188249359,-3546.46814,0.00021917,2]
[326642174,1715188249368,-151.0,0.00021917,2]
[326642176,1715188249377,-3546.46814,0.00021917,2]
[326642178,1715188249386,-237.977359,0.00021917,2]
[326642180,1715188249396,-237.977359,0.00021917,2]
[326642182,1715188249405,-192.193684,0.00021917,2]
[326642184,1715188249414,-192.193684,0.00021917,2]
[326642186,1715188249424,-192.193684,0.00021917,2]
[326642188,1715188249435,-192.193684,0.00021917,2]
[326642190,1715188249445,-151.0,0.00021917,2]
[326642192,1715188249454,-151.0,0.00021917,2]
[326642194,1715188249463,-151.0,0.00021917,2]
[326642196,1715188249472,-151.0,0.00021917,2]
[326642198,1715188249482,-151.0,0.00021917,2]
[326642200,1715188249491,-151.0,0.00021917,2]
[326642202,1715188249501,-151.0,0.00021917,2]
[326642204,1715188249510,-166.666666,0.00021918,2]
[326642206,1715188249520,-151.0,0.00021918,2]
[326642208,1715188249529,-151.0,0.00021918,2]
[326642211,1715188249539,-3537.24551007,0.00021918,2]
[326642213,1715188249553,-1134.87609912,0.00021918,2]
[326642215,1715188249566,-3956.19369923,0.00021918,2]
[326642246,1715188331956,154.65974855,9.999e-05,2]
[326642247,1715188426191,154.65974855,9.999e-05,2]
[326642248,1715189055113,154.69061876,9.999e-05,2]
[326642249,1715189398745,491.7945065,9.999e-05,2]
[326642277,1715189442515,-163.23507,0.0001589,2]
[326642279,1715189442524,-167.933731,0.0001589,2]
[326642280,1715189442533,-894.24108922,0.00016,2]
[326642283,1715189442544,-491.7945065,0.00017787,2]
[326642287,1715189442553,-1679.61395979,0.00017787,2]
[326642291,1715189442564,-297.46640052,0.00017788,2]
[326642295,1715189442573,-59299.42615279,0.00017789,2]
[326642298,1715189442582,-8896.58369624,0.0001779,2]
[326642479,1715189491698,1400.17327806,9.999e-05,2]
[326642480,1715189495522,154.69061876,9.999e-05,2]
[326642481,1715189534762,154.69061876,9.999e-05,2]
[326642482,1715189536584,154.69061876,9.999e-05,2]
[326642483,1715189939888,172.81,0.00010959,2]
[326642484,1715189953403,864.09,0.00010959,2]
[326642485,1715189958336,491.7945065,9.999e-05,2]
[326642486,1715189966391,3056.17446337,9.998e-05,2]
[326642487,1715189983704,154.69061876,9.999e-05,2]
[326642489,1715190012400,2841.0,0.000266,120]
[326642490,1715190091214,240.357053,0.00014786,2]
[326642492,1715190298392,230.35686114,9.999e-05,2]
[326642493,1715190341080,957.01310262,9.999e-05,2]
[326642494,1715190345647,3446.4,0.000226,29]
[326642498,1715190457944,491.7945065,9.999e-05,2]
[326642500,1715190541975,154.73694719,9.999e-05,2]
[326642501,1715190636533,864.38617791,0.00014974,2]
[326642503,1715190639774,-491.7945065,0.00015071,2]
[326642507,1715190639784,-15692.9802432,0.00015072,2]
[326642512,1715190639794,-5301.85501021,0.00015073,2]
[326642516,1715190639803,-46346.39388936,0.00015073,2]
[326642565,1715190642165,-12953.03226343,0.00015073,2]
[326642566,1715190642175,-154.73694719,0.00015074,2]
[326642567,1715190642184,-203.74079328,0.00015074,2]
[326642568,1715190642194,-24900.0,0.00015076,2]
[326642569,1715190642203,-2248.69682968,0.00015783,2]
[326642570,1715190642213,-154.76782357,0.00015783,2]
[326642571,1715190642223,-379.98127,0.0001589,2]
[326642572,1715190642231,-420.027687,0.0001589,2]
[326642573,1715190642241,-154.73694719,0.00016255,2]
[326642574,1715190642251,-211.6386809,0.00016255,2]
[326642575,1715190642261,-236.07687408,0.00016256,2]
[326642576,1715190642270,-27753.39934774,0.000164,2]
[326642581,1715190649434,-8892.59262547,0.000164,2]
[326642582,1715190649446,-8283.891506,0.000164,2]
[326642583,1715190649459,-263.03255426,0.00017682,2]
[326642584,1715190649468,-160.45350925,0.00017782,2]
[326642585,1715190649478,-155.10208179,0.00017784,2]
[326642586,1715190649488,-436.62379749,0.00018,2]
[326642587,1715190649498,-263.03255425,0.00018237,2]
[326642588,1715190649507,-864.38617787,0.00018338,2]
[326642589,1715190649516,-991.55469962,0.000185,2]
[326642590,1715190649526,-604.62485122,0.000185,2]
[326642591,1715190649535,-263.03255425,0.00018791,2]
[326642592,1715190649544,-154.79876161,0.00019045,2]
[326642593,1715190649554,-154.73694103,0.00019045,2]
[326642594,1715190649563,-269.69442722,0.00019045,2]
[326642595,1715190649573,-154.89304247,0.00019045,2]
[326642596,1715190649582,-160.1477507,0.00019045,2]
[326642597,1715190649591,-154.73694719,0.00019045,2]
[326642598,1715190649689,-350.4514437,0.00019046,2]
[326642599,1715190649701,-1000.0,0.00019046,2]
[326642600,1715190649711,-1000.0,0.00019047,2]
[326642601,1715190649721,-500.0,0.00019178,2]
[326642602,1715190649732,-185.02161,0.00019178,2]
[326642603,1715190649741,-263.03255425,0.00019346,2]
[326642604,1715190649751,-494.0,0.00019813,2]
[326642605,1715190649762,-299.996,0.00019813,2]
[326642606,1715190649772,-39.04058325,0.00019813,2]
[326642628,1715190655936,-110.95941675,0.00019813,2]
[326642629,1715190655946,-297.953,0.00019813,2]
[326642631,1715190655956,-1001.69587023,0.000199,2]
[326642632,1715190655966,-263.03255425,0.000199,2]
[326642633,1715190655975,-154.73694719,0.00019993,2]
[326642634,1715190655984,-422.44863447,0.00019994,2]
[326642635,1715190655993,-280.62957681,0.00019995,2]
[326642636,1715190656003,-891.13661831,0.00019997,2]
[326642637,1715190656012,-154.73694719,0.00019997,2]
[326642638,1715190656021,-158.01446209,0.00019997,2]
[326642639,1715190656030,-284.51439631,0.00019997,2]
[326642640,1715190656039,-1440.4362807,0.00019997,2]
[326642641,1715190656048,-588.89976029,0.00019998,2]
[326642642,1715190656057,-5300.02300309,0.00019998,2]
[326642643,1715190656066,-154.84560319,0.00019998,2]
[326642644,1715190656075,-730.29922921,0.00019998,2]
[326642645,1715190656086,-1318.1384474,0.00019998,2]
[326642646,1715190656096,-25463.64624779,0.0002,5]
[326642647,1715190656106,-330.43257549,0.0002,2]
[326642648,1715190656115,-1009.08993883,0.0002,4]
[326642649,1715190656124,-5467.6138057,0.0002,2]
[326642650,1715190656134,-379.96231687,0.0002,2]
[326642651,1715190656144,-20126.15538758,0.0002,2]
[326642750,1715191575023,1336.45343508,9.999e-05,2]
[326642761,1715191615069,230.35686114,9.999e-05,2]
[326642762,1715191757952,-158.869244,0.0001589,2]
[326642763,1715191757987,-165.112812,0.0001589,2]
[326642766,1715191847331,-163.98804576,0.00018109,2]
[326642772,1715191847341,-230.20249366,0.00018209,2]
[326642775,1715191847351,-2628.34812808,0.00018209,2]
[326642784,1715191847370,-186.62055653,0.0001821,2]
[326642790,1715191847388,-387.2497664,0.00018211,2]
[326642798,1715191847402,-24900.0,0.00018211,2]
[326642806,1715191847418,-991.55469962,0.000185,2]
[326642813,1715191847433,-194.10867769,0.00018747,2]
[326642821,1715191847449,-218.20211624,0.00018747,2]
[326642828,1715191847468,-1336.08187875,0.00018747,2]
[326642830,1715191847482,-414.7706568,0.00018747,2]
[326642833,1715191847497,-1167.65447645,0.000189,2]
[326642835,1715191847513,-175.770529,0.00019178,2]
[326642838,1715191847529,-7376.07426944,0.00019896,2]
[326642840,1715191847540,-205.52379747,0.00019899,2]
[326642843,1715191847554,-5777.49171674,0.000199,2]
[326642845,1715191847569,-151.0,0.000199,2]
[326642848,1715191847583,-2349.0,0.000199,7]
[326642851,1715191847601,-2946.95414224,0.000199,2]
[326642854,1715191847619,-163.98804576,0.000199,2]
[326642856,1715191847631,-18842.20328822,0.00019998,2]
[326642858,1715191847646,-672.63489978,0.00019998,2]
[326642861,1715191847662,-894.24108922,0.00019999,2]
[326642863,1715191847676,-2760.76483488,0.0002,5]
[326644104,1715192058062,1000.0,9.999e-05,2]
[326644105,1715192095006,491.7945065,9.999e-05,2]
[326644106,1715192120972,816.36645529,9.999e-05,2]
[326644107,1715192128101,2208.61693198,9.999e-05,2]
[326644108,1715192518786,1348.23552051,9.999e-05,2]
[326644109,1715192538328,230.35686114,9.999e-05,2]
[326644124,1715192977857,230.35686114,9.999e-05,2]
[326644128,1715193036573,-164.49075397,0.0001579,2]
[326644130,1715193036582,-886.72571347,0.00015889,2]
[326644134,1715193036594,-1007.65947226,0.00015889,2]
[326644137,1715193036604,-166.491641,0.0001589,2]
[326644140,1715193036613,-360.982206,0.0001589,2]
[326644143,1715193036622,-230.12530992,0.00016224,2]
[326644146,1715193036631,-13231.74137082,0.00016225,2]
[326644149,1715193036643,-375.72904365,0.00016225,2]
[326644340,1715193053257,-530.5568998,0.00016225,2]
[326644355,1715193369442,555.4,0.00010959,2]
[326644356,1715193378868,2630.07945824,9.999e-05,2]
[326644357,1715193394109,916.6131477,9.999e-05,2]
[326644358,1715193400191,816.36645529,9.999e-05,2]
[326644359,1715193440087,206.73175172,9.999e-05,2]
[326644360,1715193453064,2104.10620135,0.00015,2]
[326644362,1715193548080,230.35686114,9.999e-05,2]
[326644363,1715193696028,198.73532,0.00014469,2]
[326644364,1715193762573,900.0,9.999e-05,2]
[326644365,1715193809433,201.980854,0.00014235,2]
[326644366,1715193869796,816.36645529,9.999e-05,2]
[326644367,1715193927531,555.36,0.00010959,2]
[326644368,1715194108268,24900.0,0.00014714,2]
[326644369,1715194110291,447.09108572,9.999e-05,2]
[326644370,1715194207576,600.0,9.999e-05,2]
[326644371,1715194238175,-15692.9802432,0.00015093,2]
[326644375,1715194238185,-2396.15219991,0.00015094,2]
[326644378,1715194238195,-309.30404197,0.00015124,2]
[326644381,1715194238204,-171.87532972,0.00015124,2]
[326644385,1715194238213,-230.20249366,0.00015125,2]
[326644389,1715194238223,-822.14547537,0.0001579,2]
[326644392,1715194238232,-418.732616,0.0001589,2]
[326644395,1715194238242,-894.24108922,0.00016,2]
[326644397,1715194238251,-185.91392801,0.00016125,2]
[326644398,1715194238260,-1335.70800233,0.00016223,2]
[326644399,1715194238269,-3570.05368274,0.00016223,2]
[326644400,1715194238278,-155.07365388,0.00016223,2]
[326644401,1715194238287,-155.13745691,0.00016223,2]
[326644402,1715194238296,-893.60953512,0.00016223,2]
[326644403,1715194238306,-196.87280025,0.00016223,2]
[326644404,1715194238315,-310.37125039,0.00016223,2]
[326644405,1715194238323,-939.47409396,0.00016223,2]
[326644406,1715194238333,-1677.34524306,0.00016223,2]
[326644407,1715194238342,-161.1878028,0.00016223,2]
[326644408,1715194238351,-2453.40430644,0.00016223,2]
[326644409,1715194238360,-154.9286876,0.00016223,2]
[326644410,1715194238369,-205.81993892,0.00016223,2]
[326644411,1715194238379,-1205.26694717,0.00016223,2]
[326644412,1715194238388,-500.0,0.00016223,2]
[326644413,1715194238398,-1897.35281506,0.00016224,2]
[326644414,1715194238407,-4080.27577313,0.00016225,2]
[326644419,1715194241588,-447.09108572,0.00015092,2]
[326644423,1715194241605,-48532.05181264,0.00016225,2]
[326644427,1715194241623,-3373.95792589,0.00016225,2]
[326644431,1715194241644,-285.22063736,0.00016225,2]
[326644432,1715194241681,-273.39263722,0.000165,2]
[326644433,1715194241704,-185.91392798,0.00017109,2]
[326644434,1715194241729,-255.70191213,0.00017996,2]
[326644435,1715194241749,-185.91392798,0.00018094,2]
[326644436,1715194241768,-904.71121898,0.00018107,2]
[326644437,1715194241785,-991.55469962,0.000185,2]
[326644438,1715194241801,-604.62485122,0.000185,2]
[326644439,1715194241816,-822.14547535,0.00018516,2]
[326644440,1715194241831,-2891.25616766,0.000189,2]
[326644444,1715194253632,-2540.87731046,0.00018899,2]
[326644446,1715194253644,-4579.50443812,0.00018899,2]
[326644448,1715194253656,-3572.79766188,0.000189,2]
[326644450,1715194253667,-155.38469057,0.00019,2]
[326644452,1715194253677,-185.91392798,0.00019078,2]
[326644454,1715194253687,-306.7004866,0.00019156,2]
[326644456,1715194253698,-500.0,0.00019178,2]
[326644458,1715194253707,-500.0,0.00019178,2]
[326644460,1715194253717,-500.0,0.00019178,2]
[326644462,1715194253727,-500.0,0.00019178,2]
[326644464,1715194253838,-501.44674571,0.00019178,2]
[326644465,1715194253850,-500.0,0.00019178,2]
[326644466,1715194253860,-500.0,0.00019178,2]
[326644467,1715194253870,-500.0,0.00019178,2]
[326644468,1715194253879,-500.0,0.00019178,2]
[326644469,1715194253889,-500.0,0.00019178,2]
[326644470,1715194253899,-500.0,0.00019178,2]
[326644471,1715194253908,-500.0,0.00019178,2]
[326644472,1715194253918,-500.0,0.00019178,2]
[326644473,1715194253927,-500.0,0.00019178,2]
[326644474,1715194253937,-500.0,0.00019178,2]
[326644475,1715194253946,-500.0,0.00019178,2]
[326644476,1715194253955,-500.0,0.00019178,2]
[326644477,1715194253965,-500.0,0.00019178,2]
[326644478,1715194253975,-500.0,0.00019178,2]
[326644479,1715194253984,-430.19765615,0.00019178,2]
[326644480,1715194253994,-500.0,0.00019178,2]
[326644481,1715194254004,-500.0,0.00019178,2]
[326644482,1715194254014,-500.0,0.00019178,2]
[326644483,1715194254024,-501.32195252,0.00019178,2]
[326644484,1715194254033,-500.0,0.00019178,2]
[326644485,1715194254043,-500.0,0.00019178,2]
[326644486,1715194254052,-500.0,0.00019178,2]
[326644487,1715194254062,-615.58037541,0.00019178,2]
[326644488,1715194254071,-500.0,0.00019178,2]
[326644489,1715194254081,-500.0,0.00019178,2]
[326644490,1715194254090,-500.0,0.00019178,2]
[326644491,1715194254099,-500.0,0.00019178,2]
[326644492,1715194254109,-500.0,0.00019178,2]
[326644493,1715194254118,-500.0,0.00019178,2]
[326644494,1715194254128,-268.73451252,0.00019178,2]
[326644495,1715194254137,-500.0,0.00019178,2]
[326644496,1715194254146,-500.0,0.00019178,2]
[326644497,1715194254155,-500.0,0.00019178,2]
[326644498,1715194254165,-500.0,0.00019178,2]
[326644499,1715194254174,-500.0,0.00019178,2]
[326644500,1715194254184,-500.0,0.00019178,2]
[326644501,1715194254193,-500.0,0.00019178,2]
[326644502,1715194254203,-500.0,0.00019178,2]
[326644503,1715194254212,-500.0,0.00019178,2]
[326644504,1715194254222,-500.0,0.00019178,2]
[326644505,1715194254232,-161.55803754,0.00019178,2]
[326644506,1715194254242,-500.0,0.00019178,2]
[326644507,1715194254252,-500.0,0.00019178,2]
[326644508,1715194254263,-500.0,0.00019178,2]
[326644509,1715194254273,-500.0,0.00019178,2]
[326644510,1715194254283,-220.82089694,0.00019178,2]
[326644511,1715194254297,-279.17910306,0.00019178,2]
[326644512,1715194254307,-500.0,0.00019178,2]
[326644513,1715194254316,-500.0,0.00019178,2]
[326644514,1715194254326,-500.0,0.00019178,2]
[326644515,1715194254336,-590.20757646,0.00019178,2]
[326644516,1715194254345,-500.0,0.00019178,2]
[326644517,1715194254355,-500.0,0.00019178,2]
[326644518,1715194254365,-500.0,0.00019178,2]
[326644519,1715194254375,-545.58542133,0.00019178,2]
[326644520,1715194254385,-626.87345125,0.00019178,2]
[326644521,1715194254394,-500.0,0.00019178,2]
[326644522,1715194254404,-500.0,0.00019178,2]
[326644523,1715194254413,-184.61755973,0.00019178,2]
[326644524,1715194254423,-500.0,0.00019178,2]
[326644525,1715194254433,-500.0,0.00019178,2]
[326644526,1715194254443,-500.0,0.00019178,2]
[326644527,1715194254453,-500.0,0.00019178,2]
[326644528,1715194254462,-500.0,0.00019178,2]
[326644529,1715194254472,-500.0,0.00019178,2]
[326644530,1715194254481,-500.0,0.00019178,2]
[326644531,1715194254490,-500.0,0.00019178,2]
[326644532,1715194254500,-162.68734512,0.00019178,2]
[326644533,1715194254510,-500.0,0.00019178,2]
[326644534,1715194254520,-500.0,0.00019178,2]
[326644535,1715194254529,-500.0,0.00019178,2]
[326644536,1715194254540,-500.0,0.00019178,2]
[326644537,1715194254550,-500.0,0.00019178,2]
[326644538,1715194254559,-500.0,0.00019178,2]
[326644539,1715194254572,-500.0,0.00019178,2]
[326644540,1715194254582,-184.74303835,0.00019178,2]
[326644541,1715194254592,-500.0,0.00019178,2]
[326644542,1715194254602,-500.0,0.00019178,2]
[326644543,1715194254612,-500.0,0.00019178,2]
[326644544,1715194254622,-500.0,0.00019178,2]
[326644545,1715194254632,-500.0,0.00019178,2]
[326644546,1715194254642,-500.0,0.00019178,2]
[326644547,1715194254652,-500.0,0.00019178,2]
[326644548,1715194254662,-500.0,0.00019178,2]
[326644549,1715194254671,-500.0,0.00019178,2]
[326644550,1715194254683,-500.0,0.00019178,2]
[326644551,1715194254704,-500.0,0.00019178,2]
[326644552,1715194254714,-500.0,0.00019178,2]
[326644553,1715194254724,-500.0,0.00019178,2]
[326644554,1715194254734,-500.0,0.00019178,2]
[326644555,1715194254745,-500.0,0.00019178,2]
[326644556,1715194254757,-500.0,0.00019178,2]
[326644557,1715194254768,-500.0,0.00019178,2]
[326644558,1715194254778,-500.0,0.00019178,2]
[326644559,1715194254788,-500.0,0.00019178,2]
[326644560,1715194254799,-500.0,0.00019178,2]
[326644561,1715194254809,-500.0,0.00019178,2]
[326644562,1715194254818,-500.0,0.00019178,2]
[326644563,1715194254829,-500.0,0.00019178,2]
[326644564,1715194254843,-500.0,0.00019178,2]
[326644565,1715194254854,-500.0,0.00019178,2]
[326644566,1715194254865,-500.0,0.00019178,2]
[326644567,1715194254875,-600.0,0.00019178,2]
[326644568,1715194254893,-500.0,0.00019178,2]
[326644569,1715194254903,-500.0,0.00019178,2]
[326644570,1715194254913,-500.0,0.00019178,2]
[326644571,1715194254924,-500.0,0.00019178,2]
[326644572,1715194254934,-361.69422897,0.00019178,2]
[326644573,1715194254944,-500.0,0.00019178,2]
[326644574,1715194254954,-500.0,0.00019178,2]
[326644575,1715194254964,-500.0,0.00019178,2]
[326644576,1715194254974,-267.57836282,0.00019178,2]
[326644577,1715194254984,-500.0,0.00019178,2]
[326644578,1715194254994,-200.0,0.00019178,2]
[326644579,1715194255004,-603.06026559,0.00019178,2]
[326644580,1715194255014,-500.0,0.00019178,2]
[326644581,1715194255024,-500.0,0.00019178,2]
[326644582,1715194255034,-415.09191832,0.00019178,2]
[326644583,1715194255043,-500.0,0.00019178,2]
[326644584,1715194255053,-500.0,0.00019178,2]
[326644585,1715194255063,-500.0,0.00019178,2]
[326644586,1715194255072,-500.0,0.00019178,2]
[326644587,1715194255082,-500.0,0.00019178,2]
[326644588,1715194255091,-309.94134281,0.00019178,2]
[326644589,1715194255103,-500.0,0.00019178,2]
[326644590,1715194255113,-500.0,0.00019178,2]
[326644591,1715194255123,-590.49771564,0.00019178,2]
[326644592,1715194255132,-500.0,0.00019178,2]
[326644593,1715194255142,-500.0,0.00019178,2]
[326644594,1715194255152,-500.0,0.00019178,2]
[326644595,1715194255161,-500.0,0.00019178,2]
[326644596,1715194255171,-500.0,0.00019178,2]
[326644597,1715194255180,-500.0,0.00019178,2]
[326644598,1715194255190,-621.90769925,0.00019178,2]
[326644599,1715194255200,-500.0,0.00019178,2]
[326644600,1715194255209,-500.0,0.00019178,2]
[326644601,1715194255218,-500.0,0.00019178,2]
[326644602,1715194255228,-500.0,0.00019178,2]
[326644603,1715194255238,-500.0,0.00019178,2]
[326644604,1715194255248,-500.0,0.00019178,2]
[326644605,1715194255258,-500.0,0.00019178,2]
[326644606,1715194255268,-500.0,0.00019178,2]
[326644607,1715194255278,-500.0,0.00019178,2]
[326644608,1715194255287,-210.0,0.00019178,2]
[326644609,1715194255296,-500.0,0.00019178,2]
[326644610,1715194255307,-499.99999999,0.00019178,2]
[326644611,1715194255317,-500.0,0.00019178,2]
[326644612,1715194255327,-500.0,0.00019178,2]
[326644613,1715194255337,-400.0,0.00019178,2]
[326644614,1715194255347,-500.0,0.00019178,2]
[326644615,1715194255356,-500.0,0.00019178,2]
[326644616,1715194255366,-500.0,0.00019178,2]
[326644617,1715194255375,-190.0,0.00019178,2]
[326644618,1715194255387,-420.0,0.00019178,2]
[326644619,1715194255396,-500.0,0.00019178,2]
[326644620,1715194255406,-500.0,0.00019178,2]
[326644621,1715194255491,-197.04762734,0.00019178,2]
[326644622,1715194255502,-151.0,0.00019178,2]
[326644623,1715194255512,-151.0,0.00019178,2]
[326644624,1715194255523,-151.0,0.00019178,2]
[326644625,1715194255534,-151.903811,0.00019178,2]
[326644626,1715194255545,-500.0,0.00019178,2]
[326644627,1715194255555,-500.0,0.00019178,2]
[326644628,1715194255565,-151.0,0.00019178,2]
[326644629,1715194255575,-151.0,0.00019178,2]
[326644630,1715194255585,-151.0,0.00019178,2]
[326644631,1715194255595,-151.0,0.00019178,2]
[326644632,1715194255604,-151.0,0.00019178,2]
[326644633,1715194255614,-184.416338,0.00019178,2]
[326644634,1715194255623,-151.0,0.00019178,2]
[326644635,1715194255633,-151.0,0.00019178,2]
[326644636,1715194255643,-151.0,0.00019178,2]
[326644637,1715194255653,-190.735958,0.00019178,2]
[326644638,1715194255663,-151.0,0.00019178,2]
[326644639,1715194255672,-151.0,0.00019178,2]
[326644640,1715194255683,-151.0,0.00019178,2]
[326644641,1715194255692,-151.0,0.00019178,2]
[326644642,1715194255703,-151.0,0.00019178,2]
[326644643,1715194255713,-151.0,0.00019178,2]
[326644644,1715194255722,-151.0,0.00019178,2]
[326644645,1715194255732,-151.0,0.00019178,2]
[326644646,1715194255744,-151.0,0.00019178,2]
[326644647,1715194255755,-218.497983,0.00019178,2]
[326644648,1715194255769,-151.0,0.00019178,2]
[326644649,1715194255779,-151.0,0.00019178,2]
[326644650,1715194255789,-151.0,0.00019178,2]
[326644651,1715194255800,-151.0,0.00019178,2]
[326644652,1715194255810,-151.0,0.00019178,2]
[326644653,1715194255819,-151.0,0.00019178,2]
[326644654,1715194255829,-151.0,0.00019178,2]
[326644655,1715194255841,-151.0,0.00019178,2]
[326644656,1715194255851,-151.0,0.00019178,2]
[326644657,1715194255860,-151.792529,0.00019178,2]
[326644658,1715194255869,-151.0,0.00019178,2]
[326644659,1715194255878,-151.0,0.00019178,2]
[326644660,1715194255888,-151.0,0.00019178,2]
[326644661,1715194255898,-151.0,0.00019178,2]
[326644662,1715194255907,-151.0,0.00019178,2]
[326644663,1715194255917,-151.0,0.00019178,2]
[326644664,1715194255927,-292.679748,0.00019178,2]
[326644665,1715194255936,-292.679748,0.00019178,2]
[326644666,1715194255945,-292.679748,0.00019178,2]
[326644667,1715194255955,-292.679748,0.00019178,2]
[326644668,1715194255964,-292.679748,0.00019178,2]
[326644669,1715194255974,-292.679748,0.00019178,2]
[326644670,1715194255983,-292.679748,0.00019178,2]
[326644671,1715194255995,-292.679748,0.00019178,2]
[326644672,1715194256005,-292.679748,0.00019178,2]
[326644673,1715194256015,-292.679748,0.00019178,2]
[326644674,1715194256025,-292.679748,0.00019178,2]
[326644675,1715194256036,-292.679748,0.00019178,2]
[326644676,1715194256045,-292.679748,0.00019178,2]
[326644677,1715194256056,-292.679748,0.00019178,2]
[326644678,1715194256066,-292.679748,0.00019178,2]
[326644679,1715194256076,-292.679748,0.00019178,2]
[326644680,1715194256086,-292.679748,0.00019178,2]
[326644681,1715194256095,-292.679748,0.00019178,2]
[326644682,1715194256104,-159.590138,0.00019178,2]
[326644683,1715194256114,-292.679748,0.00019178,2]
[326644684,1715194256123,-292.679746,0.00019178,2]
[326644685,1715194256133,-273.431887,0.00019178,2]
[326644686,1715194256142,-273.431887,0.00019178,2]
[326644687,1715194256152,-273.431887,0.00019178,2]
[326644688,1715194256162,-273.431887,0.00019178,2]
[326644689,1715194256171,-273.431887,0.00019178,2]
[326644690,1715194256180,-273.431887,0.00019178,2]
[326644691,1715194256189,-273.431887,0.00019178,2]
[326644692,1715194256199,-273.431887,0.00019178,2]
[326644693,1715194256209,-273.431887,0.00019178,2]
[326644694,1715194256218,-273.431887,0.00019178,2]
[326644695,1715194256228,-273.431887,0.00019178,2]
[326644696,1715194256237,-273.431887,0.00019178,2]
[326644697,1715194256247,-273.431887,0.00019178,2]
[326644698,1715194256257,-273.431887,0.00019178,2]
[326644699,1715194256266,-273.431887,0.00019178,2]
[326644700,1715194256276,-273.431887,0.00019178,2]
[326644701,1715194256285,-273.431887,0.00019178,2]
[326644702,1715194256294,-273.431887,0.00019178,2]
[326644703,1715194256304,-273.431887,0.00019178,2]
[326644704,1715194256314,-273.431882,0.00019178,2]
[326644705,1715194256324,-243.468631,0.00019178,2]
[326644706,1715194256333,-243.468631,0.00019178,2]
[326644707,1715194256346,-243.468631,0.00019178,2]
[326644708,1715194256356,-243.468631,0.00019178,2]
[326644709,1715194256365,-243.468631,0.00019178,2]
[326644710,1715194256375,-243.468631,0.00019178,2]
[326644711,1715194256385,-243.468631,0.00019178,2]
[326644712,1715194256395,-151.0,0.00019178,2]
[326644713,1715194256404,-243.468631,0.00019178,2]
[326644714,1715194256413,-151.0,0.00019178,2]
[326644715,1715194256426,-151.0,0.00019178,2]
[326644716,1715194256435,-151.0,0.00019178,2]
[326644717,1715194256444,-151.0,0.00019178,2]
[326644718,1715194256454,-243.468631,0.00019178,2]
[326644719,1715194256463,-243.468631,0.00019178,2]
[326644720,1715194256473,-151.0,0.00019178,2]
[326644721,1715194256482,-243.468631,0.00019178,2]
[326644722,1715194256492,-243.468631,0.00019178,2]
[326644723,1715194256501,-151.0,0.00019178,2]
[326644724,1715194256512,-243.468631,0.00019178,2]